fUSD/lending_fUSD_20250213
["ID","MTS","AMOUNT","RATE_DAILY","PERIOD"]
[352925558,1739435445801,-500.0,0.00015356,2]
[352925559,1739435445811,-500.0,0.00015356,2]
[352925560,1739435445820,-500.0,0.00015356,2]
[352925561,1739435445830,-507.40484457,0.00015356,2]
[352925562,1739435445840,-1349.41,0.00015356,2]
[352925563,1739435445850,-600.26785902,0.00015356,2]
[352925564,1739435445861,-500.0,0.00015356,2]
[352925565,1739435445872,-638.41,0.00015356,2]
[352925566,1739435445882,-500.0,0.00015356,2]
[352925567,1739435445891,-500.0,0.00015356,2]
[352925568,1739435445902,-990.24,0.00015356,2]
[352925569,1739435445914,-500.0,0.00015356,2]
[352925570,1739435445923,-500.0,0.00015356,2]
[352925571,1739435445933,-500.0,0.00015356,2]
[352925572,1739435445942,-500.0,0.00015356,2]
[352925573,1739435445952,-579.15,0.00015356,2]
[352925574,1739435445962,-505.92304784,0.00015356,2]
[352925575,1739435445973,-541.78930358,0.00015356,2]
[352925576,1739435445984,-923.88,0.00015356,2]
[352925577,1739435445994,-500.0,0.00015356,2]
[352925578,1739435446006,-500.0,0.00015356,2]
[352925579,1739435446017,-500.0,0.00015356,2]
[352925580,1739435446027,-500.0,0.00015356,2]
[352925581,1739435446037,-500.0,0.00015356,2]
[352925582,1739435446047,-500.0,0.00015356,2]
[352925583,1739435446058,-500.0,0.00015356,2]
[352925584,1739435446068,-511.62953308,0.00015356,2]
[352925585,1739435446078,-506.01415286,0.00015356,2]
[352925586,1739435446087,-500.0,0.00015356,2]
[352925588,1739435446098,-500.0,0.00015356,2]
[352925590,1739435446108,-500.0,0.00015356,2]
[352925591,1739435446118,-500.0,0.00015356,2]
[352925592,1739435446128,-500.0,0.00015356,2]
[352925594,1739435446138,-546.18,0.00015356,2]
[352925597,1739435446147,-500.0,0.00015356,2]
[352925600,1739435446157,-1022.06,0.00015356,2]
[352925603,1739435446167,-500.0,0.00015356,2]
[352925607,1739435446177,-503.49908451,0.00015356,2]
[352925609,1739435446187,-500.0,0.00015356,2]
[352925611,1739435446197,-500.0,0.00015356,2]
[352925613,1739435446206,-371.17430774,0.00015356,2]
[352925615,1739435446216,-500.0,0.00015356,2]
[352925617,1739435446225,-500.0,0.00015356,2]
[352925619,1739435446234,-500.0,0.00015356,2]
[352925621,1739435446243,-500.0,0.00015356,2]
[352925622,1739435446253,-500.0,0.00015356,2]
[352925624,1739435446262,-500.0,0.00015356,2]
[352925626,1739435446272,-500.0,0.00015356,2]
[352925628,1739435446282,-507.52825894,0.00015356,2]
[352925629,1739435446292,-994.43,0.00015356,2]
[352925630,1739435446306,-500.0,0.00015356,2]
[352925631,1739435446318,-504.01629654,0.00015356,2]
[352925632,1739435446328,-509.96600735,0.00015356,2]
[352925633,1739435446339,-1200.0,0.00015356,2]
[352925634,1739435446349,-500.0,0.00015356,2]
[352925635,1739435446358,-500.0,0.00015356,2]
[352925636,1739435446370,-500.0,0.00015356,2]
[352925637,1739435446381,-561.14784564,0.00015356,2]
[352925638,1739435446391,-500.0,0.00015356,2]
[352925639,1739435446401,-500.0,0.00015356,2]
[352925640,1739435446410,-1321.8,0.00015356,2]
[352925641,1739435446421,-500.0,0.00015356,2]
[352925642,1739435446430,-500.0,0.00015356,2]
[352925643,1739435446440,-500.0,0.00015356,2]
[352925644,1739435446449,-500.0,0.00015356,2]
[352925645,1739435446457,-500.0,0.00015356,2]
[352925646,1739435446467,-980.77,0.00015356,2]
[352925647,1739435446476,-702.32,0.00015356,2]
[352925648,1739435446485,-500.0,0.00015356,2]
[352925649,1739435446494,-507.98565309,0.00015356,2]
[352925650,1739435446504,-500.0,0.00015356,2]
[352925651,1739435446514,-500.0,0.00015356,2]
[352925652,1739435446524,-500.0,0.00015356,2]
[352925653,1739435446534,-500.0,0.00015356,2]
[352925654,1739435446543,-500.0,0.00015356,2]
[352925655,1739435446553,-964.45,0.00015356,2]
[352925656,1739435446562,-1389.85,0.00015356,2]
[352925657,1739435446572,-936.76,0.00015356,2]
[352925659,1739435446581,-936.6,0.00015356,2]
[352925661,1739435446591,-500.0,0.00015356,2]
[352925662,1739435446600,-500.0,0.00015356,2]
[352925663,1739435446610,-500.0,0.00015356,2]
[352925664,1739435446620,-501.86749595,0.00015356,2]
[352925665,1739435446630,-503.66549773,0.00015356,2]
[352925667,1739435446639,-529.44,0.00015356,2]
[352925669,1739435446648,-500.0,0.00015356,2]
[352925671,1739435446657,-366.61687497,0.00015356,2]
[352925672,1739435446666,-505.23650159,0.00015356,2]
[352925673,1739435446676,-500.0,0.00015356,2]
[352925674,1739435446686,-507.2575464,0.00015356,2]
[352925675,1739435446696,-500.0,0.00015356,2]
[352925676,1739435446710,-500.0,0.00015356,2]
[352925677,1739435446721,-503.69616319,0.00015356,2]
[352925678,1739435446730,-501.78996538,0.00015356,2]
[352925679,1739435446740,-166.59917468,0.00015356,2]
[352925680,1739435446750,-1287.16,0.00015356,2]
[352925681,1739435446759,-1548.85,0.00015356,2]
[352925682,1739435446769,-500.0,0.00015356,2]
[352925683,1739435446778,-1158.76,0.00015356,2]
[352925684,1739435446787,-500.0,0.00015356,2]
[352925685,1739435446797,-500.0,0.00015356,2]
[352925686,1739435446810,-500.0,0.00015356,2]
[352925687,1739435446847,-500.0,0.00015356,2]
[352925688,1739435446903,-1106.46,0.00015356,2]
[352925689,1739435446975,-1404.62,0.00015356,2]
[352925690,1739435447062,-502.39545389,0.00015356,2]
[352925691,1739435447142,-500.0,0.00015356,2]
[352925692,1739435447291,-500.0,0.00015356,2]
[352925693,1739435447394,-500.0,0.00015356,2]
[352925694,1739435447509,-500.0,0.00015356,2]
[352925695,1739435447639,-598.93,0.00015356,2]
[352925697,1739435447866,-500.0,0.00015356,2]
[352925699,1739435447963,-500.0,0.00015356,2]
[352925700,1739435448003,-815.79,0.00015356,2]
[352925702,1739435448017,-1550.84,0.00015356,2]
[352925704,1739435448028,-500.0,0.00015356,2]
[352925706,1739435448039,-500.0,0.00015356,2]
[352925708,1739435448049,-3663.0,0.00015356,2]
[352925710,1739435448059,-500.0,0.00015356,2]
[352925711,1739435448070,-963.92,0.00015356,2]
[352925713,1739435448082,-500.0,0.00015356,2]
[352925715,1739435448092,-200.81417576,0.00015356,2]
[352925717,1739435448103,-500.0,0.00015356,2]
[352925719,1739435448113,-1032.58,0.00015356,2]
[352925721,1739435448123,-500.0,0.00015356,2]
[352925723,1739435448133,-917.48,0.00015356,2]
[352925724,1739435448144,-3179.79,0.00015356,2]
[352925726,1739435448155,-500.0,0.00015356,2]
[352925728,1739435448165,-500.93269542,0.00015356,2]
[352925730,1739435448176,-500.0,0.00015356,2]
[352925731,1739435448189,-500.0,0.00015356,2]
[352925732,1739435448199,-500.0,0.00015356,2]
[352925733,1739435448208,-585.22,0.00015356,2]
[352925734,1739435448218,-3517.37,0.00015356,2]
[352925735,1739435448228,-500.0,0.00015356,2]
[352925736,1739435448239,-813.73,0.00015356,2]
[352925737,1739435448250,-500.0,0.00015356,2]
[352925738,1739435448260,-500.0,0.00015356,2]
[352925739,1739435448270,-3156.56,0.00015356,2]
[352925740,1739435448281,-1707.44,0.00015356,2]
[352925741,1739435448291,-1297.08,0.00015356,2]
[352925742,1739435448303,-910.66,0.00015356,2]
[352925743,1739435448314,-2541.02,0.00015356,2]
[352925744,1739435448324,-3453.24,0.00015356,2]
[352925745,1739435448335,-506.49669718,0.00015356,2]
[352925746,1739435448345,-507.32894733,0.00015356,2]
[352925747,1739435448355,-500.0,0.00015356,2]
[352925748,1739435448366,-2759.97,0.00015356,2]
[352925749,1739435448377,-5341.64,0.00015356,2]
[352925750,1739435448388,-490.53376015,0.00015356,2]
[352925751,1739435448398,-500.0,0.00015356,2]
[352925752,1739435448408,-500.0,0.00015356,2]
[352925753,1739435448420,-613.31,0.00015356,2]
[352925754,1739435448430,-280.53262511,0.00015356,2]
[352925755,1739435448440,-13271.62,0.00015356,2]
[352925756,1739435448450,-500.0,0.00015356,2]
[352925757,1739435448460,-500.0,0.00015356,2]
[352925758,1739435448471,-500.0,0.00015356,2]
[352925759,1739435448481,-1187.65,0.00015356,2]
[352925760,1739435448491,-500.0,0.00015356,2]
[352925761,1739435448501,-2925.99,0.00015356,2]
[352925762,1739435448511,-597.7,0.00015356,2]
[352925763,1739435448521,-501.9297071,0.00015356,2]
[352925764,1739435448532,-873.09,0.00015356,2]
[352925765,1739435448542,-500.0,0.00015356,2]
[352925766,1739435448552,-500.0,0.00015356,2]
[352925767,1739435448562,-500.0,0.00015356,2]
[352925768,1739435448572,-500.0,0.00015356,2]
[352925769,1739435448583,-500.0,0.00015356,2]
[352925770,1739435448593,-2396.37,0.00015356,2]
[352925771,1739435448604,-500.0,0.00015356,2]
[352925772,1739435448614,-1433.79,0.00015356,2]
[352925773,1739435448624,-500.0,0.00015356,2]
[352925774,1739435448634,-3969.3,0.00015356,2]
[352925775,1739435448643,-665.83,0.00015356,2]
[352925776,1739435448653,-1430.46,0.00015356,2]
[352925777,1739435448664,-500.0,0.00015356,2]
[352925778,1739435448675,-2113.32,0.00015356,2]
[352925779,1739435448685,-503.30678872,0.00015356,2]
[352925780,1739435448694,-500.0,0.00015356,2]
[352925781,1739435448703,-500.0,0.00015356,2]
[352925782,1739435448714,-500.60630467,0.00015356,2]
[352925783,1739435448723,-500.0,0.00015356,2]
[352925784,1739435448732,-760.34,0.00015356,2]
[352925785,1739435448742,-500.0,0.00015356,2]
[352925786,1739435448752,-500.0,0.00015356,2]
[352925787,1739435448761,-1020.29,0.00015356,2]
[352925788,1739435448771,-698.04,0.00015356,2]
[352925789,1739435448780,-500.0,0.00015356,2]
[352925790,1739435448789,-4720.9,0.00015356,2]
[352925791,1739435448798,-500.0,0.00015356,2]
[352925792,1739435448808,-500.0,0.00015356,2]
[352925793,1739435448818,-500.0,0.00015356,2]
[352925794,1739435448828,-500.0,0.00015356,2]
[352925795,1739435448838,-500.0,0.00015356,2]
[352925796,1739435448849,-3027.08,0.00015356,2]
[352925797,1739435448859,-500.0,0.00015356,2]
[352925798,1739435448868,-500.0,0.00015356,2]
[352925799,1739435448878,-607.06,0.00015356,2]
[352925800,1739435448887,-2436.8,0.00015356,2]
[352925801,1739435448897,-500.0,0.00015356,2]
[352925802,1739435448908,-500.0,0.00015356,2]
[352925803,1739435448919,-500.0,0.00015356,2]
[352925804,1739435448929,-785.88,0.00015356,2]
[352925805,1739435448939,-500.0,0.00015356,2]
[352925806,1739435448948,-500.0,0.00015356,2]
[352925807,1739435448959,-330.12226495,0.00015356,2]
[352925808,1739435448970,-3711.3,0.00015356,2]
[352925809,1739435448981,-500.0,0.00015356,2]
[352925810,1739435448991,-501.4993588,0.00015356,2]
[352925811,1739435449001,-509.69,0.00015356,2]
[352925812,1739435449010,-500.0,0.00015356,2]
[352925813,1739435449020,-500.0,0.00015356,2]
[352925814,1739435449030,-715.81,0.00015356,2]
[352925815,1739435449041,-4234.83,0.00015356,2]
[352925816,1739435449051,-500.0,0.00015356,2]
[352925817,1739435449062,-502.31884108,0.00015358,2]
[352925818,1739435449072,-500.81068558,0.00015358,2]
[352925819,1739435449083,-501.15265856,0.00015358,2]
[352925820,1739435449093,-516.43368159,0.00015358,2]
[352925821,1739435449102,-501.60271732,0.00015358,2]
[352925822,1739435449113,-500.0,0.00015358,2]
[352925823,1739435449124,-500.0,0.00015358,2]
[352925824,1739435449135,-500.0,0.00015358,2]
[352925825,1739435449146,-504.29919727,0.00015358,2]
[352925826,1739435449157,-500.0,0.00015358,2]
[352925827,1739435449168,-500.0,0.00015358,2]
[352925828,1739435449180,-202.44688313,0.00015358,2]
[352925829,1739435449192,-500.0,0.00015358,2]
[352925830,1739435449204,-500.0,0.00015358,2]
[352925831,1739435449214,-500.0,0.00015358,2]
[352925832,1739435449224,-500.0,0.00015358,2]
[352925833,1739435449234,-500.0,0.00015358,2]
[352925834,1739435449244,-502.54047912,0.00015358,2]
[352925835,1739435449255,-500.0,0.00015358,2]
[352925836,1739435449266,-500.0,0.00015358,2]
[352925837,1739435449276,-751.24,0.00015358,2]
[352925838,1739435449286,-506.24348283,0.00015358,2]
[352925839,1739435449299,-500.0,0.00015358,2]
[352925840,1739435449310,-500.0,0.00015358,2]
[352925841,1739435449320,-197.5317076,0.00015358,2]
[352925842,1739435449332,-500.0,0.00015358,2]
[352925843,1739435449344,-677.2,0.00015358,2]
[352925844,1739435449355,-502.40193817,0.00015358,2]
[352925845,1739435449365,-502.13064991,0.00015358,2]
[352925846,1739435449376,-500.0,0.00015358,2]
[352925847,1739435449390,-500.0,0.00015358,2]
[352925848,1739435449400,-501.1396969,0.00015358,2]
[352925849,1739435449411,-500.0,0.00015358,2]
[352925850,1739435449423,-500.0,0.00015358,2]
[352925851,1739435449434,-500.0,0.00015358,2]
[352925852,1739435449444,-500.0,0.00015358,2]
[352925853,1739435449454,-1270.63,0.00015358,2]
[352925854,1739435449463,-1270.63,0.00015358,2]
[352925855,1739435449473,-500.0,0.00015358,2]
[352925856,1739435449483,-500.72164468,0.00015358,2]
[352925857,1739435449494,-500.0,0.00015358,2]
[352925858,1739435449505,-500.0,0.00015358,2]
[352925859,1739435449515,-670.69,0.00015358,2]
[352925860,1739435449526,-500.0,0.00015358,2]
[352925861,1739435449537,-500.0,0.00015358,2]
[352925862,1739435449547,-255.76775205,0.00015358,2]
[352925863,1739435449559,-500.0,0.00015358,2]
[352925864,1739435449570,-500.0,0.00015358,2]
[352925865,1739435449580,-500.0,0.00015358,2]
[352925866,1739435449591,-500.0,0.00015358,2]
[352925867,1739435449601,-500.0,0.00015358,2]
[352925868,1739435449611,-500.0,0.00015358,2]
[352925869,1739435449622,-500.0,0.00015358,2]
[352925870,1739435449632,-886.23,0.00015358,2]
[352925871,1739435449642,-500.0,0.00015358,2]
[352925872,1739435449652,-504.28523729,0.00015358,2]
[352925873,1739435449662,-500.0,0.00015358,2]
[352925874,1739435449673,-1055.27,0.00015358,2]
[352925875,1739435449683,-511.79796542,0.00015358,2]
[352925876,1739435449693,-305.79461018,0.00015358,2]
[352925877,1739435449703,-500.0,0.00015358,2]
[352925878,1739435449714,-1294.2,0.00015358,2]
[352925879,1739435449724,-500.0,0.00015358,2]
[352925880,1739435449734,-500.0,0.00015358,2]
[352925881,1739435449743,-507.32742226,0.00015358,2]
[352925882,1739435449753,-500.0,0.00015358,2]
[352925883,1739435449764,-500.0,0.00015358,2]
[352925884,1739435449775,-503.29398652,0.00015358,2]
[352925885,1739435449785,-500.0,0.00015358,2]
[352925886,1739435449796,-500.0,0.00015358,2]
[352925887,1739435449806,-500.0,0.00015358,2]
[352925888,1739435449816,-500.0,0.00015358,2]
[352925889,1739435449826,-500.0,0.00015358,2]
[352925890,1739435449836,-500.0,0.00015358,2]
[352925891,1739435449847,-206.10439611,0.00015358,2]
[352925892,1739435449858,-500.0,0.00015358,2]
[352925893,1739435449869,-500.0,0.00015358,2]
[352925894,1739435449879,-500.0,0.00015358,2]
[352925895,1739435449890,-500.0,0.00015358,2]
[352925896,1739435449900,-631.39,0.00015358,2]
[352925897,1739435449909,-500.0,0.00015358,2]
[352925898,1739435449919,-1492.24,0.00015358,2]
[352925899,1739435449929,-500.0,0.00015358,2]
[352925900,1739435449939,-1710.62,0.00015358,2]
[352925901,1739435449950,-500.0,0.00015358,2]
[352925902,1739435449960,-346.15524434,0.00015358,7]
[352925903,1739435449970,-527.88713742,0.00015358,2]
[352925904,1739435449980,-500.0,0.00015358,2]
[352925905,1739435449991,-500.0,0.00015358,2]
[352925906,1739435450001,-536.92,0.00015358,2]
[352925907,1739435450011,-635.17,0.00015358,2]
[352925908,1739435450021,-500.0,0.00015358,2]
[352925909,1739435450031,-958.55,0.00015358,2]
[352925910,1739435450041,-506.74054465,0.00015358,2]
[352925911,1739435450051,-790.27,0.00015358,2]
[352925912,1739435450061,-503.20454631,0.00015358,2]
[352925913,1739435450071,-500.0,0.00015358,2]
[352925914,1739435450080,-500.0,0.00015358,2]
[352925915,1739435450091,-500.0,0.00015358,2]
[352925916,1739435450100,-724.28,0.00015358,2]
[352925917,1739435450109,-893.8,0.00015358,2]
[352925918,1739435450119,-500.0,0.00015358,2]
[352925919,1739435450129,-823.93,0.00015358,2]
[352925920,1739435450139,-500.0,0.00015358,2]
[352925921,1739435450150,-500.0,0.00015358,2]
[352925922,1739435450160,-500.0,0.00015358,2]
[352925923,1739435450170,-1394.58,0.00015358,2]
[352925924,1739435450180,-2456.33,0.00015358,2]
[352925925,1739435450190,-500.0,0.00015358,2]
[352925926,1739435450200,-500.0,0.00015358,2]
[352925927,1739435450209,-708.56,0.00015358,2]
[352925928,1739435450219,-667.05,0.00015358,2]
[352925929,1739435450228,-2161.3,0.00015358,2]
[352925930,1739435450238,-500.0,0.00015358,2]
[352925931,1739435450248,-408.67107558,0.00015358,2]
[352925932,1739435450257,-500.0,0.00015358,2]
[352925933,1739435450267,-852.3,0.00015358,2]
[352925934,1739435450277,-500.0,0.00015358,2]
[352925935,1739435450286,-555.47,0.00015358,2]
[352925936,1739435450298,-500.0,0.00015358,2]
[352925937,1739435450310,-529.89230449,0.00015358,2]
[352925938,1739435450319,-613.00174138,0.00015358,2]
[352925939,1739435450329,-505.29741205,0.00015358,2]
[352925940,1739435450339,-2614.21,0.00015358,2]
[352925941,1739435450349,-500.0,0.00015358,2]
[352925942,1739435450358,-500.0,0.00015358,2]
[352925943,1739435450368,-500.0,0.00015358,2]
[352925944,1739435450379,-500.0,0.00015358,2]
[352925945,1739435450388,-500.0,0.00015358,2]
[352925946,1739435450398,-500.0,0.00015358,2]
[352925947,1739435450407,-2575.79,0.00015358,2]
[352925948,1739435450417,-392.79118974,0.00015358,2]
[352925949,1739435450428,-505.69668164,0.00015358,2]
[352925950,1739435450439,-500.0,0.00015358,2]
[352925951,1739435450450,-508.00823999,0.00015358,2]
[352925952,1739435450460,-1016.07,0.00015358,2]
[352925953,1739435450472,-500.0,0.00015358,2]
[352925954,1739435450485,-500.0,0.00015358,2]
[352925955,1739435450495,-500.0,0.00015358,2]
[352925956,1739435450562,-500.0,0.00015358,2]
[352925957,1739435450571,-511.71,0.00015358,2]
[352925958,1739435450581,-504.30501241,0.00015358,2]
[352925959,1739435450591,-500.0,0.00015358,2]
[352925960,1739435450600,-500.0,0.00015358,2]
[352925961,1739435450610,-511.13085923,0.00015358,2]
[352925962,1739435450621,-500.0,0.00015358,2]
[352925963,1739435450630,-500.0,0.00015358,2]
[352925964,1739435450642,-500.0,0.00015358,2]
[352925965,1739435450652,-500.0,0.00015358,2]
[352925966,1739435450663,-500.0,0.00015358,2]
[352925967,1739435450672,-1308.02,0.00015358,2]
[352925968,1739435450681,-500.0,0.00015358,2]
[352925969,1739435450690,-1069.74,0.00015358,2]
[352925970,1739435450700,-572.70603126,0.00015358,2]
[352925971,1739435450709,-880.99,0.00015358,2]
[352925972,1739435450719,-500.0,0.00015358,2]
[352925973,1739435450729,-500.0,0.00015358,2]
[352925974,1739435450739,-500.0,0.00015358,2]
[352925975,1739435450749,-500.0,0.00015358,2]
[352925976,1739435450759,-519.00121101,0.00015358,2]
[352925977,1739435450768,-500.0,0.00015358,2]
[352925978,1739435450778,-500.0,0.00015358,2]
[352925979,1739435450788,-1392.4,0.00015358,2]
[352925980,1739435450799,-500.0,0.00015358,2]
[352925981,1739435450808,-500.0,0.00015358,2]
[352925982,1739435450819,-500.0,0.00015358,2]
[352925983,1739435450829,-500.0,0.00015358,2]
[352925984,1739435450838,-500.0,0.00015358,2]
[352925985,1739435450848,-500.0,0.00015358,2]
[352925986,1739435450857,-500.0,0.00015358,2]
[352925987,1739435450867,-500.0,0.00015358,2]
[352925988,1739435450876,-1301.3,0.00015358,2]
[352925989,1739435450886,-500.0,0.00015358,2]
[352925990,1739435450895,-1267.14,0.00015358,2]
[352925991,1739435450905,-500.0,0.00015358,2]
[352925992,1739435450915,-500.0,0.00015358,2]
[352925993,1739435450925,-188.12995229,0.00015358,2]
[352925994,1739435450935,-1029.96,0.00015358,2]
[352925995,1739435450946,-1195.89,0.00015358,2]
[352925996,1739435450956,-552.65705329,0.00015358,2]
[352925997,1739435450966,-500.0,0.00015358,2]
[352925998,1739435450975,-501.13028311,0.00015358,2]
[352925999,1739435450984,-500.0,0.00015358,2]
[352926000,1739435450993,-500.0,0.00015358,2]
[352926001,1739435451003,-500.0,0.00015358,2]
[352926002,1739435451012,-500.0,0.00015358,2]
[352926003,1739435451021,-500.0,0.00015358,2]
[352926004,1739435451030,-500.0,0.00015358,2]
[352926005,1739435451039,-2740.73,0.00015358,2]
[352926006,1739435451048,-500.0,0.00015358,2]
[352926007,1739435451058,-500.0,0.00015358,2]
[352926008,1739435451067,-500.0,0.00015358,2]
[352926009,1739435451079,-501.86669484,0.00015358,2]
[352926010,1739435451088,-1628.48,0.00015358,2]
[352926011,1739435451098,-500.0,0.00015358,2]
[352926012,1739435451107,-500.0,0.00015358,2]
[352926013,1739435451116,-500.0,0.00015358,2]
[352926014,1739435451127,-500.0,0.00015358,2]
[352926015,1739435451136,-1291.65,0.00015358,2]
[352926016,1739435451145,-500.0,0.00015358,2]
[352926017,1739435451155,-1054.93,0.00015358,2]
[352926018,1739435451168,-500.0,0.00015358,2]
[352926019,1739435451177,-770.04,0.00015358,2]
[352926020,1739435451187,-1727.9,0.00015358,2]
[352926021,1739435451195,-500.0,0.00015358,2]
[352926022,1739435451205,-500.0,0.00015358,2]
[352926023,1739435451214,-500.0,0.00015358,2]
[352926024,1739435451223,-1274.37,0.00015358,2]
[352926025,1739435451232,-536.12,0.00015358,2]
[352926026,1739435451243,-500.0,0.00015358,2]
[352926027,1739435451252,-503.3766751,0.00015358,2]
[352926028,1739435451262,-500.0,0.00015358,2]
[352926029,1739435451272,-500.0,0.00015358,2]
[352926030,1739435451282,-500.0,0.00015358,2]
[352926031,1739435451292,-500.0,0.00015358,2]
[352926032,1739435451304,-1605.09,0.00015358,2]
[352926033,1739435451313,-500.0,0.00015358,2]
[352926034,1739435451323,-500.0,0.00015358,2]
[352926035,1739435451332,-500.0,0.00015358,2]
[352926036,1739435451341,-500.0,0.00015358,2]
[352926037,1739435451351,-2320.37,0.00015358,2]
[352926038,1739435451360,-500.0,0.00015358,2]
[352926039,1739435451370,-500.0,0.00015358,2]
[352926040,1739435451380,-1104.75,0.00015358,2]
[352926041,1739435451389,-500.0,0.00015358,2]
[352926042,1739435451399,-500.0,0.00015358,2]
[352926043,1739435451410,-500.0,0.00015358,2]
[352926044,1739435451419,-2170.34,0.00015358,2]
[352926045,1739435451429,-500.0,0.00015358,2]
[352926046,1739435451438,-500.0,0.00015358,2]
[352926047,1739435451449,-2475.77,0.00015358,2]
[352926048,1739435451459,-2268.89,0.00015358,2]
[352926049,1739435451468,-908.51,0.00015358,2]
[352926050,1739435451479,-1671.43,0.00015358,2]
[352926051,1739435451489,-500.0,0.00015358,2]
[352926052,1739435451499,-500.0,0.00015358,2]
[352926053,1739435451510,-500.0,0.00015358,2]
[352926054,1739435451520,-500.0,0.00015358,2]
[352926055,1739435451530,-593.39,0.00015358,2]
[352926056,1739435451541,-500.0,0.00015358,2]
[352926057,1739435451551,-500.0,0.00015358,2]
[352926058,1739435451563,-500.0,0.00015358,2]
[352926059,1739435451574,-686.14,0.00015358,2]
[352926060,1739435451585,-2490.68,0.00015358,2]
[352926061,1739435451596,-1456.75,0.00015358,2]
[352926062,1739435451605,-500.0,0.00015358,2]
[352926063,1739435451617,-500.0,0.00015358,2]
[352926064,1739435451627,-500.0,0.00015358,2]
[352926065,1739435451640,-2558.59,0.00015358,2]
[352926066,1739435451652,-500.0,0.00015358,2]
[352926067,1739435451663,-500.0,0.00015358,2]
[352926068,1739435451673,-500.0,0.00015358,2]
[352926069,1739435451683,-5000.0,0.00015358,2]
[352926070,1739435451693,-824.59,0.00015358,2]
[352926071,1739435451703,-500.0,0.00015358,2]
[352926072,1739435451713,-500.0,0.00015358,2]
[352926073,1739435451724,-2509.85,0.00015358,2]
[352926074,1739435451734,-500.0,0.00015358,2]
[352926075,1739435451745,-500.0,0.00015358,2]
[352926076,1739435451756,-500.0,0.00015358,2]
[352926077,1739435451765,-1276.58,0.00015358,2]
[352926078,1739435451775,-553.27,0.00015358,2]
[352926079,1739435451785,-1450.95,0.00015358,2]
[352926080,1739435451794,-500.0,0.00015358,2]
[352926081,1739435451804,-505.9363508,0.00015358,2]
[352926082,1739435451813,-668.86,0.00015358,2]
[352926083,1739435451824,-709.19,0.00015358,2]
[352926084,1739435451834,-500.0,0.00015358,2]
[352926085,1739435451844,-980.03,0.00015358,2]
[352926086,1739435451855,-500.0,0.00015358,2]
[352926087,1739435451866,-500.0,0.00015358,2]
[352926088,1739435451875,-512.48115227,0.00015358,2]
[352926089,1739435451886,-500.0,0.00015358,2]
[352926090,1739435451895,-500.0,0.00015358,2]
[352926091,1739435451907,-500.0,0.00015358,2]
[352926092,1739435451916,-708.43,0.00015358,2]
[352926093,1739435451926,-500.0,0.00015358,2]
[352926094,1739435451937,-500.0,0.00015358,2]
[352926095,1739435451948,-500.0,0.00015358,2]
[352926096,1739435451959,-1468.46,0.00015358,2]
[352926097,1739435451970,-500.0,0.00015358,2]
[352926098,1739435451981,-500.0,0.00015358,2]
[352926099,1739435451991,-1134.59,0.00015358,2]
[352926100,1739435452001,-500.0,0.00015358,2]